Cogmind - Beta 16 @@@ ROGUE MODE // 2025.11.27 @ 22:46:57 Player: ZOT Result: Destroyed by G-47 Trooper with Particle Gun Performance ------------- Evolutions (2) 1000 Regions Visited (3) 600 Robots Destroyed (12) 60 Value Destroyed (307) 307 Prototype IDs (3) 60 Alien Tech Used (0) 0 Bonus (0) 0 TOTAL SCORE: 2027 Bonus ------- None Cogmind --------- Core Integrity 0/550 Matter 237/300 Energy 90/100 System Corruption 0% Temperature Warm (166) Movement Core (50) Location -8/Materials Parts ------- > --- POWER (2) -------- (None) > --- PROPULSION (4) --- (None) > --- UTILITY (3) ------ Advanced Targeting Computer Hacking Suite > --- WEAPON (2) ------- (None) > --- INVENTORY (5) ---- Cryofiber Web Advanced Targeting Computer Recalibrator Improved Datajack Peak State ------------ > --- POWER ------------ Light Ion Engine Nuclear Core > --- PROPULSION ------- Xenon Bombardment Thruster Xenon Bombardment Thruster Xenon Bombardment Thruster Xenon Bombardment Thruster > --- UTILITY ---------- Advanced Targeting Computer Hacking Suite Hacking Suite > --- WEAPON ----------- Autogun Improved Datajack > --- INVENTORY -------- Cryofiber Web Advanced Targeting Computer Heavy Particle Gun Assault Rifle Improved Datajack [Rating: 35] Favorites ----------- Power Light Ion Engine Engine Light Ion Engine Power Core Nuclear Core Propulsion Flight Unit Wheel Wheel Flight Unit Flight Unit Utility Hacking Suite Processor Advanced Targeting Computer Hackware Hacking Suite Weapon Assault Rifle Energy Gun Heavy Particle Gun Ballistic Gun Assault Rifle Special Melee Weapon Improved Datajack Build | -11 -10 -9 -8 ------- Run | Yrd Mat Mat Mat Slots Evolved 4 | . . 2 2 Power 1 | . . . 1 Propulsion 2 | . . 1 1 Utility 1 | . . 1 . Weapon . | . . . . Parts Attached 25 | 4 6 5 10 Power 5 | 1 1 . 3 Engine 3 | 1 1 . 1 Core 2 | . . . 2 Reactor . | . . . . Propulsion 9 | 2 2 1 4 Treads . | . . . . Leg . | . . . . Wheel 2 | 2 . . . Hover . | . . . . Flight 7 | . 2 1 4 Utility 4 | . 1 2 1 Device . | . . . . Storage . | . . . . Processor 2 | . 1 . 1 Hackware 2 | . . 2 . Protection . | . . . . Artifact . | . . . . Weapon 7 | 1 2 2 2 Energy Gun 2 | . 1 . 1 Energy Cannon . | . . . . Ballistic Gun 3 | 1 1 1 . Ballistic Cannon . | . . . . Launcher . | . . . . Special Weapon . | . . . . Impact Weapon . | . . . . Slashing Weapon . | . . . . Piercing Weapon . | . . . . Special Melee Weapon 2 | . . 1 1 Unidentified Prototypes 1 | . . . 1 Parts Lost 14 | . 1 . 13 Power 2 | . . . 2 Propulsion 8 | . 1 . 7 Utility 1 | . . . 1 Weapon 3 | . . . 3 Highest Loss Streak 8 | . 1 . 8 To Critical Strikes . | . . . . Average Backups 4 | 2 4 4 4 Power . | . 1 1 . Propulsion . | . 2 . . Utility 1 | . . . 1 Weapon 1 | 1 1 1 . Tool/Special . | . . . . Unused Backups 7 | . 1 1 5 Power . | . . . . Propulsion 2 | . 1 1 . Utility 4 | . . . 4 Weapon 1 | . . . 1 Tool/Special . | . . . . Average Slot Usage (%) 79 | . 71 95 77 Engine 10 | . 14 11 9 Core 1 | . . . 1 Wheel 5 | . 21 . . Flight 20 | . 5 33 21 Processor 7 | . 1 11 9 Hackware 13 | . . 18 18 Energy Gun 1 | . . . 2 Ballistic Gun 16 | . 28 20 9 Special Melee Weapon 2 | . . 1 4 Peak Build Rating 35 | 4 6 15 35 Average Rating 15 | 3 5 12 22 On Entrance 6 | . 4 6 14 Avg Prop Armor Cover (%) . | . . . . Naked Turns . | . . . . Heaviest Build 15 | 5 7 8 15 Greatest Support 26 | 26 26 12 24 Greatest Overweight (x) 4 | . . . 4 Average Overweight (x) . | . . . . Largest Inventory Capacity 5 | 5 5 5 5 Average Capacity 5 | 5 5 5 5 Most Carried 5 | 5 5 5 5 Average Carried 4 | 2 4 4 4 Final Capacity 5 | 5 5 5 5 Final Carried 5 | 5 5 5 4 Class Distribution -------------------- 56% | Hacker-Mutant 25% | Mutant 18% | Hacker-Sprinter Dominant Class ---------------- Mutant | -10/Materials Hacker-Mutant | -9/Materials Hacker-Mutant | -8/Materials Resources | -11 -10 -9 -8 ----------- Run | Yrd Mat Mat Mat Matter Collected 664 | 191 105 22 346 Remotely . | . . . . Salvage Created 444 | . 90 22 332 Parts 23 | . 10 2 11 Haulers Intercepted . | . . . . Recyclers Shooed . | . . . . Parts Field Recycled . | . . . . Retrieved Matter . | . . . . Parts Self-Destructed . | . . . . Prevented . | . . . . Parts Restored . | . . . . Kills | -11 -10 -9 -8 ------- Run | Yrd Mat Mat Mat Combat Hostiles Destroyed 10 | . 5 . 5 Guns 9 | . 5 . 4 AOE 1 | . . . 1 Classes Destroyed 5 | . 1 1 3 Recycler 1 | . . . 1 Watcher 1 | . . 1 . Swarmer 5 | . 5 . . Grunt 3 | . . . 3 Duelist 2 | . . . 2 Best Kill Streak 5 | . 5 1 2 Combat Bots Only 5 | . 5 . 2 Max Kills in Single Turn 1 | . 1 1 1 Gunslinging . | . . . . Exploded 1 | . . . 1 Melee . | . . . . Uniques/NPCs Destroyed . | . . . . Combat | -11 -10 -9 -8 -------- Run | Yrd Mat Mat Mat Hostile Shots Fired 136 | . 28 2 106 Missed 43 | . 10 1 32 Hits 93 | . 18 1 74 Melee 8 | . . . 8 Projectile 85 | . 18 1 66 Critical Strikes 6 | . . . 6 Damage Taken 1419 | . 142 15 1262 Core 575 | . 20 . 555 Absorbed by Shields . | . . . . Core Remaining (%) 97 | 100 92 100 . Volleys Fired 53 | . 10 3 40 Largest 2 | . 2 2 2 Hottest 55 | . 40 43 55 Shots Fired 81 | . 20 6 55 Gun 81 | . 20 6 55 Cannon . | . . . . Launcher . | . . . . Special . | . . . . Kinetic 64 | . 20 6 38 Thermal 17 | . . . 17 Explosive . | . . . . Electromagnetic . | . . . . Robot Hit Streak 6 | . 2 1 6 Robot Miss Streak 6 | . 6 1 2 Penetration Max . | . . . . Secondary Targets 2 | . 1 . 1 Max Gunslinging Chain 1 | . 1 . 1 Shots Hit Robots 54 | . 7 2 45 Core Hits 22 | . 5 1 16 Critical Kills . | . . . . Critical Parts Destroyed 1 | . . . 1 Critical Strikes 2 | . . . 2 Burn 1 | . . . 1 Destroy 1 | . . . 1 Melee Attacks 6 | . . . 6 Impact . | . . . . Slashing . | . . . . Piercing . | . . . . Sneak Attacks 3 | . . . 3 Combat Hostiles . | . . . . Follow-up Attacks . | . . . . Damage Inflicted 824 | . 100 31 693 Guns 824 | . 100 31 693 Cannons . | . . . . Explosions . | . . . . Melee . | . . . . Ramming . | . . . . Kinetic 535 | . 100 31 404 Thermal 289 | . . . 289 Explosive . | . . . . Electromagnetic . | . . . . Impact . | . . . . Slashing . | . . . . Piercing . | . . . . Highest Corruption . | . . . . Average Corruption . | . . . . Corruption Purged . | . . . . Corruption Blocked . | . . . . Overload Shots . | . . . . Overflow Damage . | . . . . Projectiles . | . . . . Explosions . | . . . . Melee . | . . . . Knockbacks . | . . . . Impact . | . . . . Kinetic . | . . . . Secondary . | . . . . Self-Inflicted Damage . | . . . . Shots . | . . . . Rammed . | . . . . Targets Rammed . | . . . . Kicked . | . . . . Crushed . | . . . . Highest Temperature 240 | . . 5 240 Average Temperature 71 | . . 2 74 Received Heat Transfer 675 | . . 9 666 Siege Activations . | . . . . Martial Activations . | . . . . Shielding Activations . | . . . . Robots Disrupted . | . . . . Combat Hostiles . | . . . . Robots Corrupted . | . . . . Combat Hostiles . | . . . . Parts Fried . | . . . . Impact Corruptions . | . . . . Robots Melted . | . . . . Combat Hostiles . | . . . . Parts Melted . | . . . . Heat Transferred 629 | . . . 629 Parts Sabotaged . | . . . . Parts Stolen . | . . . . Parts Stripped . | . . . . Power Chain Reactions . | . . . . Alert | -11 -10 -9 -8 ------- Run | Yrd Mat Mat Mat Maximum Alert Level . | . . . . Low Security (%) 100 | 100 100 100 100 Level 1 . | . . . . Level 2 . | . . . . Level 3 . | . . . . Level 4 . | . . . . Level 5 . | . . . . High Security . | . . . . Max Security . | . . . . Peak Influence 110 | . 90 35 110 Initial 35 | . . 35 2 Average 20 | . 31 15 20 Influence Increases 373 | . 125 19 229 Destroy 0b10 Robot/C 200 | . 100 . 100 Destroy 0b10 Robot/NC 10 | . . 5 5 Destroy Leader 32 | . 10 2 20 Trap Triggered on 0b10 20 | . . 10 10 Successful Hack 5 | . . 2 3 Destroy Structure 1 | . . . 1 Partial Spotted 15 | . 15 . . Lose Combat Pursuer 90 | . . . 90 Influence Decreases 343 | . 40 97 206 Entered New Map 55 | . . 50 5 Time Decay 163 | . 30 47 86 Lost Part 125 | . 10 . 115 Squads Dispatched 3 | . . . 3 Investigation 1 | . . . 1 Extermination . | . . . . Reinforcement 2 | . . . 2 Assault . | . . . . Garrison . | . . . . Intercept . | . . . . Searches Triggered . | . . . . Construction Impeded . | . . . . Haulers Reinforced . | . . . . Active Scanning Responses . | . . . . Cargo Convoy Interrupts . | . . . . Stealth | -11 -10 -9 -8 --------- Run | Yrd Mat Mat Mat Distress Signals 1 | . . . 1 Communications Jammed . | . . . . Distress Signals . | . . . . Times Spotted 29 | . 6 4 19 Peak Tracking Total 8 | . 4 4 8 Tactical Retreats 2 | . . . 2 Traps | -11 -10 -9 -8 ------- Run | Yrd Mat Mat Mat Traps Triggered . | . . . . Indirectly . | . . . . Trap Hack Attempts 25 | . . 10 15 Triggered . | . . . . Disarmed . | . . . . Reprogrammed 3 | . . 1 2 Reused 2 | . . 1 1 Traps Extracted . | . . . . Installed . | . . . . Triggered 2 | . . 1 1 Machines | -11 -10 -9 -8 ---------- Run | Yrd Mat Mat Mat Machines Disabled . | . . . . Max in Single Turn . | . . . . Machines Repaired . | . . . . Machines Dismantled . | . . . . Machines Sabotaged . | . . . . Overloaded Fab Kills . | . . . . Hacking | -11 -10 -9 -8 --------- Run | Yrd Mat Mat Mat Machines Accessed 6 | . 2 1 3 Terminals 4 | . 1 1 2 Fabricators . | . . . . Repair Stations . | . . . . Recycling Units 2 | . 1 . 1 Scanalyzers . | . . . . Garrison Access . | . . . . Total Hacks 24 | . 4 4 16 Successful 18 | . 3 4 11 Failed 6 | . 1 . 5 Catastrophic . | . . . . Database Lockouts . | . . . . Manual 6 | . 2 1 3 Terminals 19 | . 2 4 13 Fabricators . | . . . . Repair Stations . | . . . . Recycling Units 5 | . 2 . 3 Scanalyzers . | . . . . Garrison Access . | . . . . Terminal Hacks 12 | . 1 3 8 Record 5 | . 1 1 3 Prototype ID Bank 1 | . . . 1 Alert Level 2 | . . 1 1 Locate Traps 3 | . . 1 2 Zone Layout 1 | . . . 1 Fabricator Hacks . | . . . . Repair Station Hacks . | . . . . Recycling Unit Hacks 3 | . 1 . 2 Report Inventory 2 | . 1 . 1 Retrieve Matter 1 | . . . 1 Scanalyzer . | . . . . Garrison Access Hacks . | . . . . Unauthorized Hacks 3 | . 1 1 1 Terminals 3 | . 1 1 1 Track 2 | . 1 . 1 Operators 1 | . . 1 . Fabricators . | . . . . Repair Stations . | . . . . Recycling Units . | . . . . Scanalyzers . | . . . . Garrison Access . | . . . . Data Cores Recovered . | . . . . Used . | . . . . Hacking Detections 5 | . 1 1 3 Full Trace Events 2 | . . 1 1 Feedback Events . | . . . . Feedback Blocked . | . . . . Robot Schematics Acquired . | . . . . Robots Built . | . . . . Authchips . | . . . . Time . | . . . . Total Robot Build Rating . | . . . . Part Schematics Acquired . | . . . . Parts Built . | . . . . Authchips . | . . . . Time . | . . . . Total Part Build Rating . | . . . . Part Studies Acquired . | . . . . Parts Repaired . | . . . . Time . | . . . . Parts Recycled . | . . . . Recycled Matter . | . . . . Retrieved Matter . | . . . . Retrieved Components . | . . . . Parts Scanalyzed . | . . . . Part Schematics Acquired . | . . . . Parts Damaged . | . . . . Bothacking | -11 -10 -9 -8 ------------ Run | Yrd Mat Mat Mat Used RIF Installer . | . . . . Robots Hacked 2 | . . . 2 Non-combat 1 | . . . 1 Combat 1 | . . . 1 Robot Hacks Applied 2 | . . . 2 parse_system 2 | . . . 2 Relay Couplers Released . | . . . . Fabnet Peak Effective % . | . . . . Robots Rewired . | . . . . Allies Hacked . | . . . . Hacks Repelled . | . . . . Allies | -11 -10 -9 -8 -------- Run | Yrd Mat Mat Mat Total Allies . | . . . . Largest Group . | . . . . Highest-Rated Group . | . . . . Highest-Rated Ally . | . . . . Total Orders . | . . . . Ally Attacks . | . . . . Total Damage . | . . . . Kills . | . . . . Allies Corrupted . | . . . . Allies Melted . | . . . . Intel | -11 -10 -9 -8 ------- Run | Yrd Mat Mat Mat Active Infowar (turns) . | . . . . Robot Analysis Total . | . . . . Derelict Logs Recovered . | . . . . Drone Launches . | . . . . Drone Recoveries . | . . . . Exploration | -11 -10 -9 -8 ------------- Run | Yrd Mat Mat Mat Turns Passed 630 | 43 153 128 306 Spaces Moved 775 | 35 154 255 331 Core 49 | 4 . . 45 Treads . | . . . . Legs . | . . . . Wheels 131 | 31 100 . . Hover . | . . . . Flight 595 | . 54 255 286 Fastest Speed 31 | 50 37 34 31 Average Speed 47 | 86 70 34 42 Slowest Speed 250 | 100 90 34 250 Overloaded Moves . | . . . . Propulsion Burnouts . | . . . . Robots Hopped 4 | . 1 1 2 Potential Cave-ins . | . . . . Cave-ins Triggered . | . . . . Exploration Rate (%) 20 | 3 28 31 19 Regions Visited 3 Branch Regions . Pre-discovered Areas . | . . . . Known Exits Taken . | . . . . Unknown Exits Taken 3 | 1 1 1 . Scrap Searched . | . . . . Spaces Dug . | . . . . Terrain Destroyed . | . . . . Melee . | . . . . Projectile . | . . . . AOE . | . . . . Terrain Rammed . | . . . . Walls Destroyed . | . . . . Machines Disabled . | . . . . Actions | -11 -10 -9 -8 --------- Run | Yrd Mat Mat Mat Total 955 | 47 176 288 444 Wait 28 | . 1 7 20 Move 764 | 34 151 252 327 Hop 4 | . 1 1 2 Pick Up 23 | 9 3 4 7 Fast Attach 6 | . 2 1 3 Attach 15 | 4 2 2 7 Detach 1 | . . . 1 Swap 17 | . 3 5 9 Drop 13 | . 3 3 7 Fire 53 | . 10 3 40 Melee 6 | . . . 6 Ram . | . . . . Kick . | . . . . Crush . | . . . . Escape Stasis . | . . . . Rewire . | . . . . Trap 25 | . . 10 15 Miscellaneous . | . . . . Route ------- -11/Scrapyard -10/Materials -9/Materials -8/Materials History --------- Turn | Location | Event 24 | -11/Scrapyard | Discovered new exit (range 14) 44 | -11/Scrapyard | Entered Materials 178 | -10/Materials | Discovered new exit (range 7) 197 | -10/Materials | Entered another Materials area 197 | -9/Materials | Evolved 2 slots: Propulsion x1, Utility x1 310 | -9/Materials | Discovered new exit (range 13) 325 | -9/Materials | Entered another Materials area 325 | -8/Materials | Evolved 2 slots: Power x1, Propulsion x1 508 | -8/Materials | Core integrity fell below 50% 536 | -8/Materials | Lost 4 parts (1p3n) 622 | -8/Materials | Core integrity fell below 20% 631 | -8/Materials | Destroyed by G-47 Trooper with Particle Gun Last Messages --------------- 00556_ G-47 Trooper destroyed. 00559_ Acquired 47 matter. 00559_ U-05 Engineer lays Concrete. 00560_ Acquired Lgt. Nuclear Core. 00563_ U-05 Engineer repairs door. 00579_ Acquired 59 matter. 00591_ Acquired Flight Unit. 00597_ Acquired Recalibrator. 00609_ Critical hit (Burn: +37). 00611_ Flight Unit destroyed. 00616_ Lgt. Nuclear Core destroyed. 00618_ Imp. Datajack destroyed. 00619_ G-47 Trooper suffers critical hit (Burn). 00621_ G-47 Trooper destroyed. 00623_ Acquired 52 matter. 00625_ Critical hit (Burn: +37). 00625_ Xenon Bombardment Thruster destroyed. 00629_ Hvy. Particle Gun destroyed. 00629_ Critical hit (Burn: +37). 00631_ Hacking Suite destroyed. Map ----- +----------------------------------------------------+ | | | | | | | | | | | | | | | ???????????????????????????????????????????? | | ???????????????????????????????????????????? | | ???????????????????????????????????????????? | | ???????????????????????????????????????????? | | ???????????????????????????????????????????? | | ???????????????????????????????????????????? | | ???????????????????????????????????????????? | | ???????????????????????????????????????????? | | ???????????????????????????#####??########?? | | ???????????????????????????#== #??# [! ! #?? | | ???????????????????????????#== #### #?? | | ???????????????????????????#!! # """ !#?? | | ???????????????????????????#! # """ #?? | | ??????????????????###??????# + """ #?? | | ?????????????????##! ??????# !# #?? | | ?????????????????#! ########### ########?? | | ?????????????????#! #####g gg#???????? | | ?????????????????#! " g g #???????? | | ?????????????????#! @ gTm#???????? | | #????????????????##! ! o##### #???????? | | #????????????????###### ###########???????? | | #????????????######???# # #?????????? | | #????????????# ##### + = "T" #?????????? | | ########?????#! # #?????????? | | # #?????# ! #####/###?????????? | | # #?????# =/##+######??# #???????????? | | # ########^ ## #??# #???????????? | | + "T" # # !## #??# #???????????? | | # """ # # ## #### #???????????? | | # # + ## + #???????????? | | ######## ! # ## ## #???????????? | | #?????# ## ## ## #???????????? | | #???### ## ## ## ###########?? | | #???#"" ## ## ## ! # #?? | | #???#" ## ## ## # #?? | | #???#"" ## ####+###### # #?? | | ##???### ## #### # #?? | | ???????# / + / #?? | | ???????# ####### # / #?? | | ???????# # ! # #### # / #?? | | ???????######## ! # #??# # #?? | | ??????????????# * # *#??# ###########?? | | ?????########## + #??# #???????????? | +----------------------------------------------------+ Best States ------------- Heat Dissipation 31 Energy Generation 19 Energy Capacity 265 Matter Stores 255 Matter Capacity 300 Sight Range 16 Terrain Scan Density 10 Evasion (%) 63 Targeting Accuracy 8 Offensive Hacking 20 Item Schematics ----------------- None Robot Schematics ------------------ None Fabricated ------------ Nothing Repaired ---------- Nothing Studied --------- None Alien Tech Used ----------------- None Achievements -------------- Hehehe Junior Dev Challenges ------------ None Game ------ Seed PrecisionGunRipper Manual? 0 Play Time 00:34:22 Cumulative 102.0 hours Start 2025.11.27 @ 22:08:19 End 2025.11.27 @ 22:46:57 Sessions 1 Manual Loads 0 Difficulty Rogue Special Mode None Game No. 122 Rogue 122 Adventurer 0 Explorer 0 Win Type - Total 0 Types 0/0/0/0/0/0/0/0/0/0 Lore% 18 Gallery% 37 Achievement% 19 Wizard Run 0 Options --------- Layout 1 ASCII 0 Keyboard 0 Movement Mouse Keybinds 0 Fullscreen 1 Font 32/SmallcapsGlow Map View 50x35 Zoom Use 0% Tactical HUD 1 Map Filters NONE Filters NONE Steam 1 RUN: 552c598f-2390-47a4-b875-00b23ffb1be0